{"text_format":"3","workbook":"xlsx","n_sheets":2,"sheets":["Medarbejderplan","Opsætning"],"not_rendered":{"defined_names":21},"read":"whole","date_system":"1900"}

{"sheet":"Medarbejderplan","index":0,"n_rows":296,"n_cols":21,"rows_kept":296,"merged":[[6,1,6,9],[66,1,66,9],[126,1,126,9],[186,1,186,9],[246,1,246,9]]}
["Medarbejderplan"]
[]
[null,"I alt:",null,{"$f":"SUM(4:4)","v":{"v":56,"d":"56.00"}}]
[null,"TIMER:",null,{"$f":"MedarbejderDagTimerIalt","v":8},8,8,8,8,8,8,{"v":0,"d":"0.00"},{"v":0,"d":"0.00"},{"v":0,"d":"0.00"},{"v":0,"d":"0.00"},{"v":0,"d":"0.00"},{"v":0,"d":"0.00"},{"v":0,"d":"0.00"},{"v":0,"d":"0.00"},{"v":0,"d":"0.00"},{"v":0,"d":"0.00"},{"v":0,"d":"0.00"}]
[null,"MEDARBEJDER:",null,"Hamborg, T","Møller, B","Larsen, A","Møller, B","Hansen, C","Jensen, M","Kamp, A"]
[]
[null,"2012-07-16T09:00:00"]
[null,{"$f":"B7","v":41106.375},{"$nulls":5},"Ferie"]
[null,{"$f":"Periodevisning","v":":15"},null,"Skranke",{"$nulls":3},"Ferie"]
[null,":30",null,"Skranke",{"$nulls":3},"Ferie"]
[null,":45",null,"Skranke","Tilsynsførende",null,"Kundeservice","Ferie"]
[null,"10:00",null,"Skranke","Tilsynsførende",null,"Kundeservice","Ferie"]
[null,":15",null,"Skranke","Tilsynsførende",null,"Kundeservice","Ferie"]
[null,":30",null,"Skranke","Tilsynsførende",null,"Kundeservice","Ferie","Bogholderi"]
[null,":45",null,"Skranke","Tilsynsførende",null,"Kundeservice","Ferie","Bogholderi","Dørvogter"]
[null,"11:00",null,"Skranke","Tilsynsførende",null,"Kundeservice","Ferie","Bogholderi","Dørvogter"]
[null,":15",null,"Skranke","Tilsynsførende","Guide","Kundeservice","Ferie","Bogholderi","Dørvogter"]
[null,":30",null,"Skranke","Pause","Guide","Kundeservice","Ferie","Bogholderi","Dørvogter"]
[null,":45",null,"Frokost","Tilsynsførende","Guide","Kundeservice","Ferie","Bogholderi","Dørvogter"]
[null,"12:00",null,"Frokost","Tilsynsførende","Guide","Kundeservice","Ferie","Bogholderi","Dørvogter"]
[null,":15",null,"Skranke","Tilsynsførende","Guide","Kundeservice","Ferie","Pause","Dørvogter"]
[null,":30",null,"Skranke","Tilsynsførende","Pause","Kundeservice","Ferie","Telefoner","Pause"]
[null,":45",null,"Skranke","Tilsynsførende","Guide","Kundeservice","Ferie","Telefoner","Dørvogter"]
[null,"13:00",null,"Skranke","Tilsynsførende","Guide","Kundeservice","Ferie","Telefoner","Dørvogter"]
[null,":15",null,"Skranke","Tilsynsførende","Guide","Frokost","Ferie","Telefoner","Dørvogter"]
[null,":30",null,null,"Tilsynsførende","Guide","Frokost","Ferie","Telefoner","Dørvogter"]
[null,":45",null,null,"Tilsynsførende","Guide","Frokost","Ferie","Frokost","Dørvogter"]
[null,"14:00",null,"Kasse","Frokost","Guide","Frokost","Ferie","Frokost","Dørvogter"]
[null,":15",null,"Kasse","Frokost","Guide","Kundeservice","Ferie","Telefoner","Dørvogter"]
[null,":30",null,"Kasse","Frokost","Frokost","Kundeservice","Ferie","Telefoner","Frokost"]
[null,":45",null,"Kasse","Frokost","Frokost","Kundeservice","Ferie","Telefoner","Frokost"]
[null,"15:00",null,"Kasse","Sikkerhed","Frokost","Kundeservice","Ferie","Telefoner","Frokost"]
[null,":15",null,"Kasse","Sikkerhed","Frokost","Kundeservice","Ferie","Telefoner","Frokost"]
[null,":30",null,"Kasse","Sikkerhed","Guide","Kundeservice","Ferie","Telefoner","Luk"]
[null,":45",null,"Kasse","Sikkerhed","Guide","Kundeservice","Ferie","Telefoner","Luk"]
[null,"16:00",null,"Kasse","Sikkerhed","Guide","Kundeservice","Ferie","Pause","Luk"]
[null,":15",null,"Pause","Sikkerhed","Guide","Pause","Ferie","Telefoner","Luk"]
[null,":30",null,"Kasse","Sikkerhed","Guide","Kundeservice","Ferie","Telefoner","Luk"]
[null,":45",null,"Kasse","Sikkerhed","Guide","Kundeservice","Ferie","Telefoner","Luk"]
[null,"17:00",null,"Kasse","Sikkerhed","Guide","Kundeservice",null,"Telefoner","Luk"]
[null,":15",null,"Kasse","Sikkerhed","Guide","Kundeservice",null,"Telefoner","Luk"]
[null,":30",null,"Kasse","Sikkerhed","Guide","Kundeservice",null,"Telefoner","Luk"]
[null,":45",null,"Kasse","Sikkerhed","Guide","Kundeservice",null,"Telefoner","Luk"]
[null,"18:00",null,"Kasse","Sikkerhed","Guide","Kundeservice",null,"Telefoner","Luk"]
[null,":15",null,"Kasse","Sikkerhed","Guide","Kundeservice",null,"Telefoner","Luk"]
[null,":30",null,null,"Sikkerhed","Guide","Kundeservice",null,"Telefoner","Luk"]
[null,":45",null,null,"Sikkerhed","Pause","Kundeservice",null,"Telefoner","Pause"]
[null,"19:00",{"$nulls":3},"Guide",null,null,"Telefoner","Luk"]
[null,":15",{"$nulls":3},"Guide",null,null,"Telefoner","Luk"]
[null,":30",{"$nulls":3},"Guide",{"$nulls":3},"Luk"]
[null,":45",{"$nulls":3},"Guide",{"$nulls":3},"Luk"]
[null,"20:00",{"$nulls":3},"Guide",{"$nulls":3},"Luk"]
[null,":15",{"$nulls":3},"Guide"]
[null,":30",{"$nulls":3},"Guide"]
[null,":45"]
[null,"21:00"]
[]
[]
[]
[]
["Medarbejderplan"]
[]
[null,"I alt:",null,{"$f":"SUM(64:64)","v":{"v":56,"d":"56.00"}}]
[null,"TIMER:",null,{"$f":"MedarbejderDagTimerIalt","v":8},8,8,8,8,8,8,{"v":0,"d":"0.00"},{"v":0,"d":"0.00"},{"v":0,"d":"0.00"},{"v":0,"d":"0.00"},{"v":0,"d":"0.00"},{"v":0,"d":"0.00"},{"v":0,"d":"0.00"},{"v":0,"d":"0.00"},{"v":0,"d":"0.00"},{"v":0,"d":"0.00"},{"v":0,"d":"0.00"}]
[null,"MEDARBEJDER:",null,"Hamborg, T","Møller, B","Larsen, A","Lang, D","Hansen, C","Jensen, M","Kamp, A"]
[]
[null,{"$f":"B7+1","v":"2012-07-17T09:00:00"}]
[null,{"$f":"B67","v":41107.375},{"$nulls":5},"Ferie"]
[null,{"$f":"Periodevisning","v":":15"},null,"Skranke",{"$nulls":3},"Ferie"]
[null,":30",null,"Skranke",{"$nulls":3},"Ferie"]
[null,":45",null,"Skranke","Tilsynsførende",null,"Kundeservice","Ferie"]
[null,"01:00",null,"Skranke","Tilsynsførende",null,"Kundeservice","Ferie"]
[null,":15",null,"Skranke","Tilsynsførende",null,"Kundeservice","Ferie"]
[null,":30",null,"Skranke","Tilsynsførende",null,"Kundeservice","Ferie","Bogholderi"]
[null,":45",null,"Skranke","Tilsynsførende",null,"Kundeservice","Ferie","Bogholderi","Dørvogter"]
[null,"02:00",null,"Skranke","Tilsynsførende",null,"Kundeservice","Ferie","Bogholderi","Dørvogter"]
[null,":15",null,"Skranke","Tilsynsførende","Guide","Kundeservice","Ferie","Bogholderi","Dørvogter"]
[null,":30",null,"Skranke","Pause","Guide","Kundeservice","Ferie","Bogholderi","Dørvogter"]
[null,":45",null,"Frokost","Tilsynsførende","Guide","Kundeservice","Ferie","Bogholderi","Dørvogter"]
[null,"03:00",null,"Frokost","Tilsynsførende","Guide","Kundeservice","Ferie","Bogholderi","Dørvogter"]
[null,":15",null,"Skranke","Tilsynsførende","Guide","Kundeservice","Ferie","Pause","Dørvogter"]
[null,":30",null,"Skranke","Tilsynsførende","Pause","Kundeservice","Ferie","Telefoner","Pause"]
[null,":45",null,"Skranke","Tilsynsførende","Guide","Kundeservice","Ferie","Telefoner","Dørvogter"]
[null,"04:00",null,"Skranke","Tilsynsførende","Guide","Kundeservice","Ferie","Telefoner","Dørvogter"]
[null,":15",null,"Skranke","Tilsynsførende","Guide","Frokost","Ferie","Telefoner","Dørvogter"]
[null,":30",null,null,"Tilsynsførende","Guide","Frokost","Ferie","Telefoner","Dørvogter"]
[null,":45",null,null,"Tilsynsførende","Guide","Frokost","Ferie","Frokost","Dørvogter"]
[null,"05:00",null,"Kasse","Frokost","Guide","Frokost","Ferie","Frokost","Dørvogter"]
[null,":15",null,"Kasse","Frokost","Guide","Kundeservice","Ferie","Telefoner","Dørvogter"]
[null,":30",null,"Kasse","Frokost","Frokost","Kundeservice","Ferie","Telefoner","Frokost"]
[null,":45",null,"Kasse","Frokost","Frokost","Kundeservice","Ferie","Telefoner","Frokost"]
[null,"06:00",null,"Kasse","Sikkerhed","Frokost","Kundeservice","Ferie","Telefoner","Frokost"]
[null,":15",null,"Kasse","Sikkerhed","Frokost","Kundeservice","Ferie","Telefoner","Frokost"]
[null,":30",null,"Kasse","Sikkerhed","Guide","Kundeservice","Ferie","Telefoner","Luk"]
[null,":45",null,"Kasse","Sikkerhed","Guide","Kundeservice","Ferie","Telefoner","Luk"]
[null,"07:00",null,"Kasse","Sikkerhed","Guide","Kundeservice","Ferie","Pause","Luk"]
[null,":15",null,"Pause","Sikkerhed","Guide","Pause","Ferie","Telefoner","Luk"]
[null,":30",null,"Kasse","Sikkerhed","Guide","Kundeservice","Ferie","Telefoner","Luk"]
[null,":45",null,"Kasse","Sikkerhed","Guide","Kundeservice","Ferie","Telefoner","Luk"]
[null,"08:00",null,"Kasse","Sikkerhed","Guide","Kundeservice",null,"Telefoner","Luk"]
[null,":15",null,"Kasse","Sikkerhed","Guide","Kundeservice",null,"Telefoner","Luk"]
[null,":30",null,"Kasse","Sikkerhed","Guide","Kundeservice",null,"Telefoner","Luk"]
[null,":45",null,"Kasse","Sikkerhed","Guide","Kundeservice",null,"Telefoner","Luk"]
[null,"09:00",null,"Kasse","Sikkerhed","Guide","Kundeservice",null,"Telefoner","Luk"]
[null,":15",null,"Kasse","Sikkerhed","Guide","Kundeservice",null,"Telefoner","Luk"]
[null,":30",null,null,"Sikkerhed","Guide","Kundeservice",null,"Telefoner","Luk"]
[null,":45",null,null,"Sikkerhed","Pause","Kundeservice",null,"Telefoner","Pause"]
[null,"10:00",{"$nulls":3},"Guide",null,null,"Telefoner","Luk"]
[null,":15",{"$nulls":3},"Guide",null,null,"Telefoner","Luk"]
[null,":30",{"$nulls":3},"Guide",{"$nulls":3},"Luk"]
[null,":45",{"$nulls":3},"Guide",{"$nulls":3},"Luk"]
[null,"11:00",{"$nulls":3},"Guide",{"$nulls":3},"Luk"]
[null,":15",{"$nulls":3},"Guide"]
[null,":30",{"$nulls":3},"Guide"]
[null,":45"]
[null,"12:00"]
[]
[]
[]
[]
["Medarbejderplan"]
[]
[null,"I alt:",null,{"$f":"SUM(124:124)","v":{"v":56,"d":"56.00"}}]
[null,"TIMER:",null,{"$f":"MedarbejderDagTimerIalt","v":8},8,8,8,8,8,8,{"v":0,"d":"0.00"},{"v":0,"d":"0.00"},{"v":0,"d":"0.00"},{"v":0,"d":"0.00"},{"v":0,"d":"0.00"},{"v":0,"d":"0.00"},{"v":0,"d":"0.00"},{"v":0,"d":"0.00"},{"v":0,"d":"0.00"},{"v":0,"d":"0.00"},{"v":0,"d":"0.00"}]
[null,"MEDARBEJDER:",null,"Hamborg, T","Møller, B","Larsen, A","Lang, D","Hansen, C","Jensen, M","Kamp, A"]
[]
[null,{"$f":"B67+1","v":"2012-07-18T09:00:00"}]
[null,{"$f":"B127","v":41108.375},{"$nulls":5},"Ferie"]
[null,{"$f":"Periodevisning","v":":15"},null,"Skranke",{"$nulls":3},"Ferie"]
[null,":30",null,"Skranke",{"$nulls":3},"Ferie"]
[null,":45",null,"Skranke","Tilsynsførende",null,"Kundeservice","Ferie"]
[null,"16:00",null,"Skranke","Tilsynsførende",null,"Kundeservice","Ferie"]
[null,":15",null,"Skranke","Tilsynsførende",null,"Kundeservice","Ferie"]
[null,":30",null,"Skranke","Tilsynsførende",null,"Kundeservice","Ferie","Bogholderi"]
[null,":45",null,"Skranke","Tilsynsførende",null,"Kundeservice","Ferie","Bogholderi","Dørvogter"]
[null,"17:00",null,"Skranke","Tilsynsførende",null,"Kundeservice","Ferie","Bogholderi","Dørvogter"]
[null,":15",null,"Skranke","Tilsynsførende","Guide","Kundeservice","Ferie","Bogholderi","Dørvogter"]
[null,":30",null,"Skranke","Pause","Guide","Kundeservice","Ferie","Bogholderi","Dørvogter"]
[null,":45",null,"Frokost","Tilsynsførende","Guide","Kundeservice","Ferie","Bogholderi","Dørvogter"]
[null,"18:00",null,"Frokost","Tilsynsførende","Guide","Kundeservice","Ferie","Bogholderi","Dørvogter"]
[null,":15",null,"Skranke","Tilsynsførende","Guide","Kundeservice","Ferie","Pause","Dørvogter"]
[null,":30",null,"Skranke","Tilsynsførende","Pause","Kundeservice","Ferie","Telefoner","Pause"]
[null,":45",null,"Skranke","Tilsynsførende","Guide","Kundeservice","Ferie","Telefoner","Dørvogter"]
[null,"19:00",null,"Skranke","Tilsynsførende","Guide","Kundeservice","Ferie","Telefoner","Dørvogter"]
[null,":15",null,"Skranke","Tilsynsførende","Guide","Frokost","Ferie","Telefoner","Dørvogter"]
[null,":30",null,null,"Tilsynsførende","Guide","Frokost","Ferie","Telefoner","Dørvogter"]
[null,":45",null,null,"Tilsynsførende","Guide","Frokost","Ferie","Frokost","Dørvogter"]
[null,"20:00",null,"Kasse","Frokost","Guide","Frokost","Ferie","Frokost","Dørvogter"]
[null,":15",null,"Kasse","Frokost","Guide","Kundeservice","Ferie","Telefoner","Dørvogter"]
[null,":30",null,"Kasse","Frokost","Frokost","Kundeservice","Ferie","Telefoner","Frokost"]
[null,":45",null,"Kasse","Frokost","Frokost","Kundeservice","Ferie","Telefoner","Frokost"]
[null,"21:00",null,"Kasse","Sikkerhed","Frokost","Kundeservice","Ferie","Telefoner","Frokost"]
[null,":15",null,"Kasse","Sikkerhed","Frokost","Kundeservice","Ferie","Telefoner","Frokost"]
[null,":30",null,"Kasse","Sikkerhed","Guide","Kundeservice","Ferie","Telefoner","Luk"]
[null,":45",null,"Kasse","Sikkerhed","Guide","Kundeservice","Ferie","Telefoner","Luk"]
[null,"22:00",null,"Kasse","Sikkerhed","Guide","Kundeservice","Ferie","Pause","Luk"]
[null,":15",null,"Pause","Sikkerhed","Guide","Pause","Ferie","Telefoner","Luk"]
[null,":30",null,"Kasse","Sikkerhed","Guide","Kundeservice","Ferie","Telefoner","Luk"]
[null,":45",null,"Kasse","Sikkerhed","Guide","Kundeservice","Ferie","Telefoner","Luk"]
[null,"23:00",null,"Kasse","Sikkerhed","Guide","Kundeservice",null,"Telefoner","Luk"]
[null,":15",null,"Kasse","Sikkerhed","Guide","Kundeservice",null,"Telefoner","Luk"]
[null,":30",null,"Kasse","Sikkerhed","Guide","Kundeservice",null,"Telefoner","Luk"]
[null,":45",null,"Kasse","Sikkerhed","Guide","Kundeservice",null,"Telefoner","Luk"]
[null,"00:00",null,"Kasse","Sikkerhed","Guide","Kundeservice",null,"Telefoner","Luk"]
[null,":15",null,"Kasse","Sikkerhed","Guide","Kundeservice",null,"Telefoner","Luk"]
[null,":30",null,null,"Sikkerhed","Guide","Kundeservice",null,"Telefoner","Luk"]
[null,":45",null,null,"Sikkerhed","Pause","Kundeservice",null,"Telefoner","Pause"]
[null,"01:00",{"$nulls":3},"Guide",null,null,"Telefoner","Luk"]
[null,":15",{"$nulls":3},"Guide",null,null,"Telefoner","Luk"]
[null,":30",{"$nulls":3},"Guide",{"$nulls":3},"Luk"]
[null,":45",{"$nulls":3},"Guide",{"$nulls":3},"Luk"]
[null,"02:00",{"$nulls":3},"Guide",{"$nulls":3},"Luk"]
[null,":15",{"$nulls":3},"Guide"]
[null,":30",{"$nulls":3},"Guide"]
[null,":45"]
[null,"03:00"]
[]
[]
[]
[]
["Medarbejderplan"]
[]
[null,"I alt:",null,{"$f":"SUM(184:184)","v":{"v":56,"d":"56.00"}}]
[null,"TIMER:",null,{"$f":"MedarbejderDagTimerIalt","v":8},8,8,8,8,8,8,{"v":0,"d":"0.00"},{"v":0,"d":"0.00"},{"v":0,"d":"0.00"},{"v":0,"d":"0.00"},{"v":0,"d":"0.00"},{"v":0,"d":"0.00"},{"v":0,"d":"0.00"},{"v":0,"d":"0.00"},{"v":0,"d":"0.00"},{"v":0,"d":"0.00"},{"v":0,"d":"0.00"}]
[null,"MEDARBEJDER:",null,"Hamborg, T","Møller, B","Larsen, A","Lang, D","Hansen, C","Jensen, M","Kamp, A"]
[]
[null,{"$f":"B127+1","v":"2012-07-19T09:00:00"}]
[null,{"$f":"B187","v":41109.375},{"$nulls":5},"Ferie"]
[null,{"$f":"Periodevisning","v":":15"},null,"Skranke",{"$nulls":3},"Ferie"]
[null,":30",null,"Skranke",{"$nulls":3},"Ferie"]
[null,":45",null,"Skranke","Tilsynsførende",null,"Kundeservice","Ferie"]
[null,"07:00",null,"Skranke","Tilsynsførende",null,"Kundeservice","Ferie"]
[null,":15",null,"Skranke","Tilsynsførende",null,"Kundeservice","Ferie"]
[null,":30",null,"Skranke","Tilsynsførende",null,"Kundeservice","Ferie","Bogholderi"]
[null,":45",null,"Skranke","Tilsynsførende",null,"Kundeservice","Ferie","Bogholderi","Dørvogter"]
[null,"08:00",null,"Skranke","Tilsynsførende",null,"Kundeservice","Ferie","Bogholderi","Dørvogter"]
[null,":15",null,"Skranke","Tilsynsførende","Guide","Kundeservice","Ferie","Bogholderi","Dørvogter"]
[null,":30",null,"Skranke","Pause","Guide","Kundeservice","Ferie","Bogholderi","Dørvogter"]
[null,":45",null,"Frokost","Tilsynsførende","Guide","Kundeservice","Ferie","Bogholderi","Dørvogter"]
[null,"09:00",null,"Frokost","Tilsynsførende","Guide","Kundeservice","Ferie","Bogholderi","Dørvogter"]
[null,":15",null,"Skranke","Tilsynsførende","Guide","Kundeservice","Ferie","Pause","Dørvogter"]
[null,":30",null,"Skranke","Tilsynsførende","Pause","Kundeservice","Ferie","Telefoner","Pause"]
[null,":45",null,"Skranke","Tilsynsførende","Guide","Kundeservice","Ferie","Telefoner","Dørvogter"]
[null,"10:00",null,"Skranke","Tilsynsførende","Guide","Kundeservice","Ferie","Telefoner","Dørvogter"]
[null,":15",null,"Skranke","Tilsynsførende","Guide","Frokost","Ferie","Telefoner","Dørvogter"]
[null,":30",null,null,"Tilsynsførende","Guide","Frokost","Ferie","Telefoner","Dørvogter"]
[null,":45",null,null,"Tilsynsførende","Guide","Frokost","Ferie","Frokost","Dørvogter"]
[null,"11:00",null,"Kasse","Frokost","Guide","Frokost","Ferie","Frokost","Dørvogter"]
[null,":15",null,"Kasse","Frokost","Guide","Kundeservice","Ferie","Telefoner","Dørvogter"]
[null,":30",null,"Kasse","Frokost","Frokost","Kundeservice","Ferie","Telefoner","Frokost"]
[null,":45",null,"Kasse","Frokost","Frokost","Kundeservice","Ferie","Telefoner","Frokost"]
[null,"12:00",null,"Kasse","Sikkerhed","Frokost","Kundeservice","Ferie","Telefoner","Frokost"]
[null,":15",null,"Kasse","Sikkerhed","Frokost","Kundeservice","Ferie","Telefoner","Frokost"]
[null,":30",null,"Kasse","Sikkerhed","Guide","Kundeservice","Ferie","Telefoner","Luk"]
[null,":45",null,"Kasse","Sikkerhed","Guide","Kundeservice","Ferie","Telefoner","Luk"]
[null,"13:00",null,"Kasse","Sikkerhed","Guide","Kundeservice","Ferie","Pause","Luk"]
[null,":15",null,"Pause","Sikkerhed","Guide","Pause","Ferie","Telefoner","Luk"]
[null,":30",null,"Kasse","Sikkerhed","Guide","Kundeservice","Ferie","Telefoner","Luk"]
[null,":45",null,"Kasse","Sikkerhed","Guide","Kundeservice","Ferie","Telefoner","Luk"]
[null,"14:00",null,"Kasse","Sikkerhed","Guide","Kundeservice",null,"Telefoner","Luk"]
[null,":15",null,"Kasse","Sikkerhed","Guide","Kundeservice",null,"Telefoner","Luk"]
[null,":30",null,"Kasse","Sikkerhed","Guide","Kundeservice",null,"Telefoner","Luk"]
[null,":45",null,"Kasse","Sikkerhed","Guide","Kundeservice",null,"Telefoner","Luk"]
[null,"15:00",null,"Kasse","Sikkerhed","Guide","Kundeservice",null,"Telefoner","Luk"]
[null,":15",null,"Kasse","Sikkerhed","Guide","Kundeservice",null,"Telefoner","Luk"]
[null,":30",null,null,"Sikkerhed","Guide","Kundeservice",null,"Telefoner","Luk"]
[null,":45",null,null,"Sikkerhed","Pause","Kundeservice",null,"Telefoner","Pause"]
[null,"16:00",{"$nulls":3},"Guide",null,null,"Telefoner","Luk"]
[null,":15",{"$nulls":3},"Guide",null,null,"Telefoner","Luk"]
[null,":30",{"$nulls":3},"Guide",{"$nulls":3},"Luk"]
[null,":45",{"$nulls":3},"Guide",{"$nulls":3},"Luk"]
[null,"17:00",{"$nulls":3},"Guide",{"$nulls":3},"Luk"]
[null,":15",{"$nulls":3},"Guide"]
[null,":30",{"$nulls":3},"Guide"]
[null,":45"]
[null,"18:00"]
[]
[]
[]
[]
["Medarbejderplan"]
[]
[null,"I alt:",null,{"$f":"SUM(244:244)","v":{"v":56,"d":"56.00"}}]
[null,"TIMER:",null,{"$f":"MedarbejderDagTimerIalt","v":8},8,8,8,8,8,8,{"v":0,"d":"0.00"},{"v":0,"d":"0.00"},{"v":0,"d":"0.00"},{"v":0,"d":"0.00"},{"v":0,"d":"0.00"},{"v":0,"d":"0.00"},{"v":0,"d":"0.00"},{"v":0,"d":"0.00"},{"v":0,"d":"0.00"},{"v":0,"d":"0.00"},{"v":0,"d":"0.00"}]
[null,"MEDARBEJDER:",null,"Hamborg, T","Møller, B","Larsen, A","Lang, D","Hansen, C","Jensen, M","Kamp, A"]
[]
[null,{"$f":"B187+1","v":"2012-07-20T09:00:00"}]
[null,{"$f":"B247","v":41110.375},{"$nulls":5},"Ferie"]
[null,{"$f":"Periodevisning","v":":15"},null,"Skranke",{"$nulls":3},"Ferie"]
[null,":30",null,"Skranke",{"$nulls":3},"Ferie"]
[null,":45",null,"Skranke","Tilsynsførende",null,"Kundeservice","Ferie"]
[null,"22:00",null,"Skranke","Tilsynsførende",null,"Kundeservice","Ferie"]
[null,":15",null,"Skranke","Tilsynsførende",null,"Kundeservice","Ferie"]
[null,":30",null,"Skranke","Tilsynsførende",null,"Kundeservice","Ferie","Bogholderi"]
[null,":45",null,"Skranke","Tilsynsførende",null,"Kundeservice","Ferie","Bogholderi","Dørvogter"]
[null,"23:00",null,"Skranke","Tilsynsførende",null,"Kundeservice","Ferie","Bogholderi","Dørvogter"]
[null,":15",null,"Skranke","Tilsynsførende","Guide","Kundeservice","Ferie","Bogholderi","Dørvogter"]
[null,":30",null,"Skranke","Pause","Guide","Kundeservice","Ferie","Bogholderi","Dørvogter"]
[null,":45",null,"Frokost","Tilsynsførende","Guide","Kundeservice","Ferie","Bogholderi","Dørvogter"]
[null,"00:00",null,"Frokost","Tilsynsførende","Guide","Kundeservice","Ferie","Bogholderi","Dørvogter"]
[null,":15",null,"Skranke","Tilsynsførende","Guide","Kundeservice","Ferie","Pause","Dørvogter"]
[null,":30",null,"Skranke","Tilsynsførende","Pause","Kundeservice","Ferie","Telefoner","Pause"]
[null,":45",null,"Skranke","Tilsynsførende","Guide","Kundeservice","Ferie","Telefoner","Dørvogter"]
[null,"01:00",null,"Skranke","Tilsynsførende","Guide","Kundeservice","Ferie","Telefoner","Dørvogter"]
[null,":15",null,"Skranke","Tilsynsførende","Guide","Frokost","Ferie","Telefoner","Dørvogter"]
[null,":30",null,null,"Tilsynsførende","Guide","Frokost","Ferie","Telefoner","Dørvogter"]
[null,":45",null,null,"Tilsynsførende","Guide","Frokost","Ferie","Frokost","Dørvogter"]
[null,"02:00",null,"Kasse","Frokost","Guide","Frokost","Ferie","Frokost","Dørvogter"]
[null,":15",null,"Kasse","Frokost","Guide","Kundeservice","Ferie","Telefoner","Dørvogter"]
[null,":30",null,"Kasse","Frokost","Frokost","Kundeservice","Ferie","Telefoner","Frokost"]
[null,":45",null,"Kasse","Frokost","Frokost","Kundeservice","Ferie","Telefoner","Frokost"]
[null,"03:00",null,"Kasse","Sikkerhed","Frokost","Kundeservice","Ferie","Telefoner","Frokost"]
[null,":15",null,"Kasse","Sikkerhed","Frokost","Kundeservice","Ferie","Telefoner","Frokost"]
[null,":30",null,"Kasse","Sikkerhed","Guide","Kundeservice","Ferie","Telefoner","Luk"]
[null,":45",null,"Kasse","Sikkerhed","Guide","Kundeservice","Ferie","Telefoner","Luk"]
[null,"04:00",null,"Kasse","Sikkerhed","Guide","Kundeservice","Ferie","Pause","Luk"]
[null,":15",null,"Pause","Sikkerhed","Guide","Pause","Ferie","Telefoner","Luk"]
[null,":30",null,"Kasse","Sikkerhed","Guide","Kundeservice","Ferie","Telefoner","Luk"]
[null,":45",null,"Kasse","Sikkerhed","Guide","Kundeservice","Ferie","Telefoner","Luk"]
[null,"05:00",null,"Kasse","Sikkerhed","Guide","Kundeservice",null,"Telefoner","Luk"]
[null,":15",null,"Kasse","Sikkerhed","Guide","Kundeservice",null,"Telefoner","Luk"]
[null,":30",null,"Kasse","Sikkerhed","Guide","Kundeservice",null,"Telefoner","Luk"]
[null,":45",null,"Kasse","Sikkerhed","Guide","Kundeservice",null,"Telefoner","Luk"]
[null,"06:00",null,"Kasse","Sikkerhed","Guide","Kundeservice",null,"Telefoner","Luk"]
[null,":15",null,"Kasse","Sikkerhed","Guide","Kundeservice",null,"Telefoner","Luk"]
[null,":30",null,null,"Sikkerhed","Guide","Kundeservice",null,"Telefoner","Luk"]
[null,":45",null,null,"Sikkerhed","Pause","Kundeservice",null,"Telefoner","Pause"]
[null,"07:00",{"$nulls":3},"Guide",null,null,"Telefoner","Luk"]
[null,":15",{"$nulls":3},"Guide",null,null,"Telefoner","Luk"]
[null,":30",{"$nulls":3},"Guide",{"$nulls":3},"Luk"]
[null,":45",{"$nulls":3},"Guide",{"$nulls":3},"Luk"]
[null,"08:00",{"$nulls":3},"Guide",{"$nulls":3},"Luk"]
[null,":15",{"$nulls":3},"Guide"]
[null,":30",{"$nulls":3},"Guide"]
[null,":45"]
[null,"09:00"]

{"sheet":"Opsætning","index":1,"n_rows":26,"n_cols":7,"rows_kept":26}
[null,"Opsætning"]
[]
[]
[null,"INTERVALLER PR.\nTIMEINPUT",4]
[]
[]
[]
[]
[]
[null,"Medarbejdere",null,"Stilling/fritid","Farve","Betalt","Hele dagen"]
[null,"Hamborg, T",null,"Frokost",1,false,false]
[null,"Hansen, C",null,"Pause",1,false,false]
[null,"Jensen, M",null,"Fri",1,false,true]
[null,"Jørgensen, D",null,"Syg",1,false,true]
[null,"Møller, B",null,"Omsorgsdag",1,true,true]
[null,"Lang, D",null,"Ferie",1,true,true]
[null,"Kamp, A",null,"Skranke",2,true,false]
[null,"Larsen, A",null,"Kasse",3,true,false]
[{"$nulls":3},"Tilsynsførende",4,true,false]
[{"$nulls":3},"Guide",5,true,false]
[{"$nulls":3},"Kundeservice",6,true,false]
[{"$nulls":3},"Telefoner",7,true,false]
[{"$nulls":3},"Sikkerhed",8,true,false]
[{"$nulls":3},"Dørvogter",9,true,false]
[{"$nulls":3},"Bogholderi",10,true,false]
[{"$nulls":3},"Luk",11,true,false]